fUST/lending_fUST_20240705
["ID","MTS","AMOUNT","RATE_DAILY","PERIOD"]
[331248100,1720156580536,-500.0,0.00049315,120]
[331248101,1720156580690,-500.0,0.00049315,120]
[331248102,1720156580721,-500.0,0.00049315,120]
[331248103,1720156580752,-500.0,0.00049315,120]
[331248104,1720156581165,-500.0,0.00049315,120]
[331248105,1720156581569,-500.0,0.00049315,120]
[331248106,1720156581838,-500.0,0.00049315,120]
[331248107,1720156581975,-500.0,0.00049315,120]
[331248108,1720156582124,-500.0,0.00049315,120]
[331248109,1720156582155,-500.0,0.00049315,120]
[331248110,1720156582426,-500.0,0.00049315,120]
[331248111,1720156582859,-545.01210152,0.00049315,120]
[331248112,1720156583016,-500.0,0.00049315,120]
[331248113,1720156583043,-500.0,0.00049315,120]
[331248114,1720156583293,-500.0,0.00049315,120]
[331248115,1720156583430,-500.0,0.00049315,120]
[331248116,1720156583458,-500.0,0.00049315,120]
[331248117,1720156583485,-500.0,0.00049315,120]
[331248118,1720156583511,-500.0,0.00049315,120]
[331248119,1720156583585,-500.0,0.00049315,120]
[331248120,1720156584071,-500.0,0.00049315,120]
[331248121,1720156584324,-500.0,0.00049315,120]
[331248122,1720156584676,-500.0,0.00049315,120]
[331248123,1720156584906,-500.0,0.00049315,120]
[331248124,1720156585268,-500.0,0.00049315,120]
[331248125,1720156585533,-500.0,0.00049315,120]
[331248126,1720156586055,-500.0,0.00049315,120]
[331248127,1720156586506,-500.0,0.00049315,120]
[331248128,1720156586779,-500.0,0.00049315,120]
[331248129,1720156586810,-500.0,0.00049315,120]
[331248130,1720156586838,-500.67856614,0.00049315,120]
[331248131,1720156586922,-500.0,0.00049315,120]
[331248132,1720156586949,-500.0,0.00049315,120]
[331248133,1720156586977,-500.0,0.00049315,120]
[331248134,1720156587003,-500.0,0.00049315,120]
[331248135,1720156587028,-500.0,0.00049315,120]
[331248136,1720156587074,-501.31911291,0.00049315,120]
[331248137,1720156587099,-500.0,0.00049315,120]
[331248138,1720156587125,-500.0,0.00049315,120]
[331248139,1720156587156,-852.01,0.00049315,120]
[331248140,1720156587184,-500.0,0.00049315,120]
[331248141,1720156587508,-500.0,0.00049315,120]
[331248142,1720156587652,-500.0,0.00049315,120]
[331248143,1720156587807,-500.0,0.00049315,120]
[331248144,1720156588095,-500.0,0.00049315,120]
[331248145,1720156588311,-500.0,0.00049315,120]
[331248146,1720156588339,-595.6450422,0.00049315,120]
[331248147,1720156588365,-500.0,0.00049315,120]
[331248148,1720156588392,-500.0,0.00049315,120]
[331248149,1720156588417,-500.0,0.00049315,120]
[331248150,1720156588444,-500.0,0.00049315,120]
[331248151,1720156588472,-500.0,0.00049315,120]
[331248152,1720156588497,-500.0,0.00049315,120]
[331248153,1720156588523,-500.0,0.00049315,120]
[331248154,1720156588548,-330.77778651,0.00049315,120]
[331248155,1720156588574,-535.46,0.00049315,120]
[331248156,1720156588599,-500.0,0.00049315,120]
[331248157,1720156588758,-500.0,0.00049315,120]
[331248158,1720156588785,-503.21819714,0.00049315,120]
[331248159,1720156588816,-846.69,0.00049315,120]
[331248160,1720156588843,-663.8,0.00049315,120]
[331248161,1720156588871,-573.82997716,0.00049315,120]
[331248162,1720156588896,-500.0,0.00049315,120]
[331248163,1720156588923,-501.24474331,0.00049315,120]
[331248164,1720156589337,-500.0,0.00049315,120]
[331248165,1720156589364,-500.0,0.00049315,120]
[331248166,1720156589392,-500.0,0.00049315,120]
[331248167,1720156589420,-500.0,0.00049315,120]
[331248168,1720156589449,-500.0,0.00049315,120]
[331248169,1720156589476,-500.0,0.00049315,120]
[331248170,1720156589504,-500.0,0.00049315,120]
[331248171,1720156589608,-500.0,0.00049315,120]
[331248172,1720156589634,-500.0,0.00049315,120]
[331248173,1720156589660,-500.0,0.00049315,120]
[331248174,1720156589687,-500.0,0.00049315,120]
[331248175,1720156589717,-500.0,0.00049315,120]
[331248176,1720156589743,-500.0,0.00049315,120]
[331248177,1720156589770,-500.0,0.00049315,120]
[331248178,1720156589798,-500.0,0.00049315,120]
[331248179,1720156589825,-500.0,0.00049315,120]
[331248180,1720156589853,-500.0,0.00049315,120]
[331248181,1720156589880,-500.0,0.00049315,120]
[331248182,1720156589907,-500.0,0.00049315,120]
[331248183,1720156589933,-500.5779207,0.00049315,120]
[331248184,1720156589961,-500.0,0.00049315,120]
[331248185,1720156591388,-500.0,0.00049315,120]
[331248186,1720156591743,-500.0,0.00049315,120]
[331248187,1720156592026,-500.0,0.00049315,120]
[331248188,1720156592431,-500.0,0.00049315,120]
[331248189,1720156593085,-508.19662709,0.00049315,120]
[331248190,1720156593486,-271.85141325,0.00049315,120]
[331248191,1720156593770,-500.0,0.00049315,120]
[331248192,1720156594048,-500.0,0.00049315,120]
[331248193,1720156594604,-500.0,0.00049315,25]
[331248194,1720156594887,-500.36839912,0.00049315,120]
[331248195,1720156595301,-500.0,0.00049315,120]
[331248196,1720156595578,-500.0,0.00049315,120]
[331248197,1720156595993,-500.0,0.00049315,120]
[331248198,1720156596432,-500.0,0.00049315,120]
[331248199,1720156596891,-500.0,0.00049315,120]
[331248200,1720156597342,-500.0,0.00049315,120]
[331248201,1720156597634,-500.0,0.00049315,120]
[331248202,1720156597778,-500.0,0.00049315,120]
[331248203,1720156598214,-177.19921427,0.00049315,120]
[331248204,1720156598260,-500.0,0.00049315,120]
[331248205,1720156598307,-501.53568674,0.00049315,120]
[331248206,1720156598362,-500.0,0.00049315,120]
[331248207,1720156598403,-500.0,0.00049315,120]
[331248208,1720156598563,-500.0,0.00049315,120]
[331248209,1720156598604,-500.0,0.00049315,120]
[331248210,1720156598650,-1009.08,0.00049315,120]
[331248211,1720156598934,-500.0,0.00049315,120]
[331248212,1720156599513,-500.0,0.00049315,120]
[331248213,1720156599556,-500.0,0.00049315,120]
[331248214,1720156599598,-500.0,0.00049315,120]
[331248215,1720156599640,-500.0,0.00049315,120]
[331248216,1720156599684,-176.35651072,0.00049315,120]
[331248217,1720156599939,-500.0,0.00049315,120]
[331248218,1720156600209,-500.0,0.00049315,120]
[331248219,1720156600502,-500.0,0.00049315,120]
[331248220,1720156600777,-500.0,0.00049315,120]
[331248221,1720156600926,-500.0,0.00049315,120]
[331248222,1720156601342,-525.99,0.00049315,120]
[331248223,1720156601726,-988.53,0.00049315,120]
[331248224,1720156601767,-500.53794028,0.00049315,120]
[331248225,1720156601805,-500.0,0.00049315,120]
[331248226,1720156601864,-500.0,0.00049315,120]
[331248227,1720156602008,-500.0,0.00049315,120]
[331248228,1720156602260,-452.2016707,0.00049315,120]
[331248229,1720156602904,-500.0,0.00049315,120]
[331248230,1720156603494,-500.0,0.00049315,120]
[331248231,1720156603872,-500.0,0.00049315,120]
[331248232,1720156604201,-500.0,0.00049315,120]
[331248233,1720156604657,-500.0,0.00049315,120]
[331248234,1720156604891,-500.0,0.00049315,120]
[331248235,1720156605175,-500.0,0.00049315,120]
[331248236,1720156605503,-500.0,0.00049315,120]
[331248237,1720156605829,-500.0,0.00049315,120]
[331248238,1720156605941,-502.03637406,0.00049315,120]
[331248239,1720156606076,-599.72,0.00049315,120]
[331248240,1720156606169,-500.0,0.00049315,120]
[331248241,1720156606323,-4546.59,0.00049315,120]
[331248242,1720156606368,-523.95463356,0.00049315,120]
[331248243,1720156606409,-500.0,0.00049315,120]
[331248244,1720156606451,-500.0,0.00049315,120]
[331248245,1720156606490,-500.0,0.00049315,120]
[331248246,1720156606530,-500.0,0.00049315,120]
[331248247,1720156606569,-500.0,0.00049315,120]
[331248248,1720156606610,-500.0,0.00049315,120]
[331248249,1720156606652,-500.0,0.00049315,120]
[331248250,1720156606692,-500.0,0.00049315,120]
[331248251,1720156606733,-500.0,0.00049315,120]
[331248252,1720156606774,-500.0,0.00049315,120]
[331248253,1720156606815,-500.0,0.00049315,120]
[331248254,1720156606855,-500.0,0.00049315,120]
[331248255,1720156606976,-786.57,0.00049315,120]
[331248256,1720156607017,-500.0,0.00049315,120]
[331248257,1720156607250,-500.0,0.00049315,120]
[331248258,1720156607502,-500.0,0.00049315,120]
[331248259,1720156607544,-500.0,0.00049315,120]
[331248260,1720156607584,-500.0,0.00049315,120]
[331248261,1720156607626,-500.0,0.00049315,120]
[331248262,1720156607667,-500.0,0.00049315,120]
[331248263,1720156607740,-1531.78,0.00049315,120]
[331248264,1720156608072,-500.0,0.00049315,120]
[331248265,1720156608203,-500.0,0.00049315,120]
[331248266,1720156608415,-500.0,0.00049315,120]
[331248267,1720156608456,-500.0,0.00049315,120]
[331248268,1720156608499,-1158.29,0.00049315,120]
[331248269,1720156608754,-500.0,0.00049315,120]
[331248270,1720156608926,-500.0,0.00049315,120]
[331248271,1720156609207,-500.0,0.00049315,120]
[331248272,1720156609361,-500.0,0.00049315,120]
[331248273,1720156609607,-500.0,0.00049315,120]
[331248274,1720156609773,-537.88,0.00049315,120]
[331248275,1720156609813,-500.0,0.00049315,120]
[331248276,1720156609853,-1342.97,0.00049315,120]
[331248277,1720156609892,-928.69,0.00049315,120]
[331248278,1720156609933,-500.0,0.00049315,120]
[331248279,1720156610215,-500.0,0.00049315,120]
[331248280,1720156610594,-500.0,0.00049315,120]
[331248281,1720156610940,-500.0,0.00049315,120]
[331248282,1720156611046,-500.0,0.00049315,120]
[331248283,1720156611149,-970.37,0.00049315,120]
[331248284,1720156611266,-500.0,0.00049315,120]
[331248285,1720156611305,-500.0,0.00049315,120]
[331248286,1720156611346,-544.35495771,0.00049315,120]
[331248287,1720156611386,-500.0,0.00049315,120]
[331248288,1720156611425,-500.0,0.00049315,120]
[331248289,1720156611463,-5119.0,0.00049315,120]
[331248290,1720156611500,-500.0,0.00049315,120]
[331248291,1720156611537,-500.0,0.00049315,120]
[331248292,1720156611576,-500.0,0.00049315,20]
[331248293,1720156611615,-1492.47,0.00049315,120]
[331248294,1720156611683,-1042.58,0.00049315,120]
[331248295,1720156611726,-500.0,0.00049315,120]
[331248296,1720156611767,-1257.08,0.00049315,120]
[331248297,1720156611806,-812.0,0.00049315,120]
[331248298,1720156611848,-2414.0,0.00049315,120]
[331248299,1720156611887,-500.0,0.00049315,120]
[331248300,1720156611927,-501.13753634,0.00049315,120]
[331248301,1720156611968,-500.0,0.00049315,120]
[331248302,1720156612008,-500.0,0.00049315,120]
[331248303,1720156612047,-500.0,0.00049315,120]
[331248304,1720156612087,-646.20026217,0.00049315,120]
[331248305,1720156612128,-500.0,0.00049315,120]
[331248306,1720156612170,-500.0,0.00049315,120]
[331248307,1720156612210,-500.0,0.00049315,120]
[331248308,1720156612457,-500.0,0.00049315,120]
[331248309,1720156612633,-500.0,0.00049315,120]
[331248310,1720156612675,-8128.57,0.00049315,120]
[331248311,1720156612713,-500.0,0.00049315,120]
[331248312,1720156613089,-526.57,0.00049315,120]
[331248313,1720156613131,-500.0,0.00049315,120]
[331248314,1720156613670,-500.0,0.00049315,120]
[331248315,1720156613712,-500.0,0.00049315,120]
[331248316,1720156613829,-500.0,0.00049315,120]
[331248317,1720156613873,-1164.42,0.00049315,120]
[331248318,1720156613913,-500.0,0.00049315,120]
[331248319,1720156613953,-500.0,0.00049315,120]
[331248320,1720156613993,-500.0,0.00049315,120]
[331248321,1720156614305,-500.0,0.00049315,120]
[331248322,1720156614463,-891.8,0.00049315,120]
[331248323,1720156614504,-500.0,0.00049315,120]
[331248324,1720156614544,-500.0,0.00049315,120]
[331248325,1720156614585,-857.85,0.00049315,120]
[331248326,1720156614627,-500.0,0.00049315,120]
[331248327,1720156614913,-500.0,0.00049315,120]
[331248328,1720156614954,-500.0,0.00049315,120]
[331248329,1720156614995,-14146.1,0.00049315,120]
[331248330,1720156615035,-585.91,0.00049315,120]
[331248331,1720156615079,-4341.45,0.00049315,120]
[331248332,1720156615147,-2801.93,0.00049315,120]
[331248333,1720156615192,-500.0,0.00049315,120]
[331248334,1720156615461,-735.03,0.00049315,120]
[331248335,1720156616038,-501.96045232,0.00049315,120]
[331248336,1720156616077,-501.42535814,0.00049315,120]
[331248337,1720156616116,-500.0,0.00049315,120]
[331248338,1720156616156,-500.0,0.00049315,120]
[331248339,1720156616201,-500.0,0.00049315,120]
[331248340,1720156616243,-500.0,0.00049315,120]
[331248341,1720156616283,-500.0,0.00049315,120]
[331248342,1720156616322,-500.0,0.00049315,120]
[331248343,1720156616363,-2089.94,0.00049315,120]
[331248344,1720156616403,-500.0,0.00049315,120]
[331248345,1720156616458,-500.0,0.00049315,120]
[331248346,1720156616500,-9352.61,0.00049315,120]
[331248347,1720156616541,-500.0,0.00049315,120]
[331248348,1720156616582,-500.0,0.00049315,120]
[331248349,1720156616627,-500.0,0.00049315,120]
[331248350,1720156616668,-807.74,0.00049315,120]
[331248351,1720156616710,-2417.42,0.00049315,120]
[331248352,1720156616755,-500.0,0.00049315,120]
[331248353,1720156616806,-500.0,0.00049315,120]
[331248354,1720156616863,-552.9,0.00049315,120]
[331248355,1720156616904,-500.0,0.00049315,120]
[331248356,1720156616946,-500.0,0.00049315,120]
[331248357,1720156616987,-1137.47,0.00049315,120]
[331248358,1720156617026,-500.0,0.00049315,120]
[331248359,1720156617066,-500.0,0.00049315,120]
[331248360,1720156617106,-1238.69,0.00049315,120]
[331248361,1720156617144,-500.0,0.00049315,120]
[331248362,1720156617185,-500.0,0.00049315,120]
[331248363,1720156617224,-769.58,0.00049315,120]
[331248364,1720156617262,-500.0,0.00049315,120]
[331248365,1720156617300,-500.0,0.00049315,120]
[331248366,1720156617340,-500.0,0.00049315,120]
[331248367,1720156617383,-500.0,0.00049315,60]
[331248368,1720156617422,-500.0,0.00049315,120]
[331248369,1720156617462,-501.42881769,0.00049315,120]
[331248370,1720156617503,-500.0,0.00049315,120]
[331248371,1720156617544,-500.0,0.00049315,120]
[331248372,1720156617583,-500.0,0.00049315,120]
[331248373,1720156617624,-500.0,0.00049315,120]
[331248374,1720156617665,-500.0,0.00049315,120]
[331248375,1720156617705,-500.0,0.00049315,120]
[331248376,1720156618118,-500.0,0.00049315,120]
[331248377,1720156618575,-878.55,0.00049315,120]
[331248378,1720156619074,-258.10442131,0.00049315,120]
[331248379,1720156619344,-561.35,0.00049315,120]
[331248380,1720156619774,-550.83,0.00049315,120]
[331248381,1720156620045,-500.0,0.00049315,120]
[331248382,1720156620476,-696.92,0.00049315,120]
[331248383,1720156621015,-500.0,0.00049315,120]
[331248384,1720156621478,-500.0,0.00049315,120]
[331248385,1720156621747,-500.0,0.00049315,120]
[331248386,1720156622185,-500.0,0.00049315,120]
[331248387,1720156622324,-500.0,0.00049315,120]
[331248388,1720156622368,-500.0,0.00049315,120]
[331248389,1720156622778,-907.99,0.00049315,120]
[331248390,1720156623257,-500.0,0.00049315,120]
[331248391,1720156623538,-500.0,0.00049315,120]
[331248392,1720156623982,-4356.87,0.00049315,120]
[331248393,1720156624136,-500.0,0.00049315,120]
[331248394,1720156624588,-500.0,0.00049315,120]
[331248395,1720156624841,-1525.27,0.00049315,120]
[331248396,1720156624982,-500.0,0.00049315,120]
[331248397,1720156625119,-16366.67,0.00049315,120]
[331248398,1720156625273,-500.0,0.00049315,10]
[331248399,1720156625318,-500.0,0.00049315,120]
[331248400,1720156625420,-501.49252065,0.00049315,120]
[331248401,1720156625558,-500.0,0.00049315,120]
[331248402,1720156625599,-500.0,0.00049315,30]
[331248403,1720156625701,-501.67589518,0.00049315,120]
[331248404,1720156626208,-4533.08,0.00049315,120]
[331248405,1720156626493,-167.54516086,0.00049315,120]
[331248406,1720156626537,-500.0,0.00049315,120]
[331248407,1720156626580,-500.0,0.00049315,120]
[331248408,1720156626621,-500.0,0.00049315,120]
[331248409,1720156626667,-503.54772577,0.00049315,120]
[331248410,1720156626710,-500.0,0.00049315,120]
[331248411,1720156626752,-808.1,0.00049315,120]
[331248412,1720156626797,-504.11,0.00049315,120]
[331248413,1720156626843,-500.0,0.00049315,120]
[331248414,1720156626888,-500.0,0.00049315,120]
[331248415,1720156626961,-500.0,0.00049315,120]
[331248416,1720156627518,-500.0,0.00049315,120]
[331248417,1720156627561,-1800.9,0.00049315,21]
[331248418,1720156627603,-500.0,0.00049315,120]
[331248419,1720156627647,-2324.9,0.00049315,120]
[331248420,1720156627688,-500.0,0.00049315,120]
[331248421,1720156627733,-500.0,0.00049315,120]
[331248422,1720156627774,-500.0,0.00049315,120]
[331248423,1720156627816,-500.0,0.00049315,120]
[331248424,1720156627964,-500.0,0.00049315,120]
[331248425,1720156628006,-500.0,0.00049315,120]
[331248426,1720156628047,-500.0,0.00049315,120]
[331248427,1720156628088,-500.0,0.00049315,120]
[331248428,1720156628132,-3459.61,0.00049315,120]
[331248429,1720156628272,-577.04257022,0.00049315,120]
[331248430,1720156628413,-500.0,0.00049315,120]
[331248431,1720156628456,-224.40115111,0.00049315,120]
[331248432,1720156628498,-500.0,0.00049315,120]
[331248433,1720156628541,-500.0,0.00049315,120]
[331248434,1720156628584,-500.0,0.00049315,120]
[331248435,1720156628628,-194.74322901,0.00049315,120]
[331248436,1720156628802,-500.0,0.00049315,120]
[331248437,1720156628848,-500.0,0.00049315,120]
[331248438,1720156628891,-500.0,0.00049315,120]
[331248439,1720156628933,-500.0,0.00049315,120]
[331248440,1720156628976,-500.0,0.00049315,120]
[331248441,1720156629022,-500.0,0.00049315,120]
[331248442,1720156629067,-500.0,0.00049315,120]
[331248443,1720156629111,-500.0,0.00049315,120]
[331248444,1720156629263,-500.0,0.00049315,120]
[331248445,1720156629306,-830.19,0.00049315,120]
[331248446,1720156629348,-799.96,0.00049315,120]
[331248447,1720156629391,-500.0,0.00049315,120]
[331248448,1720156629432,-500.0,0.00049315,120]
[331248449,1720156629472,-500.0,0.00049315,120]
[331248450,1720156629514,-500.0,0.00049315,120]
[331248451,1720156629555,-503.91523264,0.00049315,120]
[331248452,1720156630226,-500.0,0.00049315,120]
[331248453,1720156630514,-500.0,0.00049315,120]
[331248454,1720156631211,-500.0,0.00049315,120]
[331248455,1720156631473,-500.0,0.00049315,120]
[331248456,1720156631883,-500.0,0.00049315,120]
[331248457,1720156632218,-500.0,0.00049315,120]
[331248458,1720156632650,-500.0,0.00049315,120]
[331248459,1720156632985,-504.49632434,0.00049315,120]
[331248460,1720156633257,-1384.25,0.00049315,120]
[331248461,1720156633304,-1384.25,0.00049315,120]
[331248462,1720156633349,-503.69675748,0.00049315,120]
[331248463,1720156633398,-1384.25,0.00049315,120]
[331248464,1720156633839,-1384.25,0.00049315,120]
[331248465,1720156634312,-501.55761231,0.00049315,120]
[331248466,1720156634738,-500.0,0.00049315,120]
[331248467,1720156635025,-1384.25,0.00049315,120]
[331248468,1720156635474,-500.0,0.00049315,120]
[331248469,1720156635818,-1384.25,0.00049315,120]
[331248470,1720156636515,-500.0,0.00049315,120]
[331248471,1720156636558,-815.91,0.00049315,120]
[331248472,1720156636876,-1384.25,0.00049315,120]
[331248473,1720156637165,-901.62,0.00049315,120]
[331248474,1720156637462,-1384.25,0.00049315,120]
[331248475,1720156637625,-1384.25,0.00049315,120]
[331248476,1720156637669,-1384.25,0.00049315,120]
[331248477,1720156637710,-500.0,0.00049315,120]
[331248478,1720156637755,-1384.25,0.00049315,120]
[331248479,1720156637799,-1384.25,0.00049315,120]
[331248480,1720156637843,-10000.0,0.000495,70]
[331248481,1720156638182,-5119.0,0.00049589,120]
[331248482,1720156638591,-151.0,0.00049781,120]
[331248483,1720156638731,-5119.0,0.00049863,120]
[331248484,1720156638771,-154.74467129,0.0005,30]
[331248485,1720156638810,-600.00310713,0.0005,4]
[331248486,1720156638848,-523.61998014,0.0005,120]
[331248487,1720156638887,-30180.41802801,0.0005,120]
[331248488,1720156639149,-1000.94328898,0.0005,60]
[331248489,1720156639428,-4308.03496036,0.0005,60]
[331248490,1720156639469,-46179.9911751,0.0005,120]
[331248491,1720156639511,-154.68290005,0.0005,4]
[331248492,1720156639554,-5119.0,0.00050136,120]
[331248493,1720156639974,-5119.0,0.0005041,120]
[331248494,1720156640114,-595.0,0.000506,30]
[331248495,1720156640399,-500.0,0.00050684,19]
[331248496,1720156640673,-5119.0,0.00050684,120]
[331248497,1720156640947,-151.0,0.00050685,120]
[331248498,1720156641231,-4211.97047743,0.00050958,120]
[331248508,1720157154411,-2192.81574867,0.00014998,2]
[331248509,1720157233397,-258.5109013,0.00014998,2]
[331248510,1720157234574,-369.089067,0.00014998,2]
[331248511,1720157238342,-300.98403954,0.00014998,2]
[331248512,1720157240514,-194.0,0.00014998,2]
[331248513,1720157242451,-205.01623855,0.00014998,2]
[331248529,1720157432871,-500.0,0.00014956,2]
[331248531,1720157432881,-192.0,0.00014997,2]
[331248533,1720157432891,-6094.81493025,0.00014998,2]
[331248534,1720157432900,-6077.4096593,0.00014998,2]
[331248536,1720157432909,-158.91827288,0.00015229,2]
[331248655,1720157445496,-2744.87829792,0.00015229,2]
[331248659,1720157445505,-227.899791,0.00015888,2]
[331248662,1720157445514,-581.86161438,0.00016153,2]
[331248664,1720157445523,-500.0,0.00016154,2]
[331248667,1720157445532,-500.0,0.00016154,2]
[331248670,1720157445542,-500.0,0.00016154,2]
[331248674,1720157445553,-273.39975296,0.00016154,2]
[331248675,1720157445562,-1211.54815001,0.00016155,2]
[331248676,1720157445573,-205.01623855,0.00016254,2]
[331248678,1720157445583,-483.68106898,0.00016254,2]
[331248680,1720157445593,-21690.22319574,0.00016255,2]
[331248682,1720157445605,-770.48399967,0.00016255,2]
[331248684,1720157445617,-7539.29280459,0.00016255,2]
[331248686,1720157445627,-34932.27430829,0.00016255,2]
[331248688,1720157445638,-17247.80566422,0.00016255,2]
[331248690,1720157445647,-10665.1045809,0.00018889,2]
[331248692,1720157445656,-250.0,0.00019041,2]
[331248694,1720157445666,-159.336049,0.00019178,2]
[331248695,1720157445675,-166.666666,0.00019752,2]
[331248697,1720157445685,-166.666666,0.00020291,2]
[331248699,1720157445694,-166.666666,0.00020829,2]
[331248701,1720157445703,-575.116909,0.00021096,2]
[331248702,1720157445712,-664.176403,0.00021096,2]
[331248704,1720157445723,-166.666666,0.00021368,2]
[331248705,1720157445732,-166.666666,0.00021906,2]
[331248706,1720157445742,-166.666666,0.00022445,2]
[331248707,1720157445751,-4711.13030053,0.00022941,2]
[331248708,1720157445761,-1724.35538883,0.00022942,2]
[331248709,1720157445771,-200.0,0.00023,2]
[331248710,1720157445780,-3138.06906429,0.00023453,2]
[331248711,1720157445791,-227.899791,0.00023832,2]
[331248712,1720157445802,-1116.9418809,0.00023966,2]
[331248713,1720157445812,-3078.85157566,0.00023966,2]
[331248714,1720157445822,-874.4460469,0.00024179,2]
[331248715,1720157445832,-159.637788,0.00024365,2]
[331248716,1720157445841,-380.0,0.00024658,2]
[331248717,1720157445851,-200.0,0.00024658,15]
[331248718,1720157445860,-632.72230235,0.00025388,2]
[331248719,1720157445869,-156.39013558,0.0002543,2]
[331248720,1720157445880,-10665.1045809,0.00025491,3]
[331248721,1720157445889,-33478.74275837,0.00025501,2]
[331248722,1720157445902,-52100.07365113,0.00025501,2]
[331248723,1720157445913,-879.23230837,0.00025501,2]
[331248724,1720157445924,-3968.06642419,0.00025501,2]
[331248725,1720157445934,-754.760916,0.00025769,2]
[331248726,1720157445944,-159.2855263,0.00025868,2]
[331248727,1720157445954,-2118.54298063,0.00025869,2]
[331248728,1720157445964,-1634.75488436,0.00025869,2]
[331248729,1720157445975,-3000.0,0.000265,2]
[331248730,1720157445985,-10665.1045809,0.000265,3]
[331248731,1720157445994,-3000.0,0.0002651,2]
[331248732,1720157446004,-3000.0,0.0002652,2]
[331248733,1720157446014,-3000.0,0.0002653,2]
[331248734,1720157446023,-3000.0,0.0002654,2]
[331248735,1720157446038,-3000.0,0.0002655,2]
[331248736,1720157446048,-10665.1045809,0.0002655,3]
[331248737,1720157446058,-3000.0,0.0002656,2]
[331248738,1720157446067,-3000.0,0.0002657,2]
[331248739,1720157446079,-378.37321801,0.00026574,2]
[331248740,1720157446090,-3000.0,0.0002658,2]
[331248741,1720157446100,-3000.0,0.0002659,2]
[331248742,1720157446111,-3000.0,0.000266,2]
[331248743,1720157446121,-3000.0,0.0002661,2]
[331248744,1720157446130,-3000.0,0.0002662,2]
[331248745,1720157446140,-3000.0,0.0002663,2]
[331248746,1720157446150,-3000.0,0.0002664,2]
[331248747,1720157446160,-3000.0,0.0002665,2]
[331248748,1720157446171,-3305.948312,0.0002666,2]
[331248749,1720157446181,-160.09733992,0.00027194,2]
[331248750,1720157446191,-190.9326654,0.00027194,2]
[331248751,1720157446201,-575.116909,0.00027195,2]
[331248752,1720157446211,-664.176403,0.00027195,2]
[331248753,1720157446221,-10665.1045809,0.0002799,3]
[331248754,1720157446231,-12193.72029826,0.00028,30]
[331248755,1720157446240,-1663.00804896,0.00029545,20]
[331248756,1720157446249,-4591.6811785,0.00029713,2]
[331248757,1720157446259,-292.11449447,0.00029803,2]
[331248758,1720157446268,-57214.94712358,0.00029803,2]
[331248759,1720157446277,-10665.1045809,0.00029813,3]
[331248760,1720157446287,-175.1548047,0.00029813,2]
[331248761,1720157446296,-1663.00804896,0.0002984,20]
[331248762,1720157446306,-471.27760912,0.0003,4]
[331248763,1720157446316,-351.32038796,0.0003,30]
[331248764,1720157446325,-1814.19059886,0.00030136,22]
[331248765,1720157446335,-1814.19059886,0.00030431,22]
[331248767,1720157446344,-1814.19059886,0.00030726,22]
[331248768,1720157446354,-454.46793068,0.00031022,24]
[331248770,1720157446363,-156.39013558,0.00031622,7]
[331248773,1720157446373,-754.76091598,0.00031631,2]
[331248775,1720157446384,-156.25095608,0.00031918,7]